bitfinex/quotes_SOLUSD_20260217
["timestamp","ask_amount","ask_price","bid_price","bid_amount"]
[1771338673381,53.0,85.127,85.061,0.47679441]
[1771338673382,7.09609936,85.11,85.061,0.47679441]
[1771338673562,7.09609936,85.09,85.059,0.47679441]
[1771338673762,7.09609936,85.09,85.05,7.09609936]
[1771338674083,7.09609936,85.09,85.051,0.47679441]
[1771338674280,7.09609936,85.08,85.051,0.47679441]
[1771338674583,7.09609936,85.08,85.052,11.75751305]
[1771338674759,7.09609936,85.08,85.053,0.49122816]
[1771338675375,7.09609936,85.08,85.041,0.49122816]
[1771338675559,7.09609936,85.08,85.04,18.85520455]
[1771338675560,7.09609936,85.09,85.051,0.49122816]
[1771338675755,0.46350617,85.114,85.05,7.09609936]
[1771338675756,7.09609936,85.12,85.071,0.49122816]
[1771338675954,7.09609936,85.12,85.091,0.49122816]
[1771338676166,7.09609936,85.13,85.091,0.49122816]
[1771338676676,0.46350617,85.162,85.094,0.49122816]
[1771338676975,7.09609936,85.15,85.111,0.49122816]
[1771338677184,7.09609936,85.14,85.111,0.49122816]
[1771338677353,0.46350617,85.16,85.111,0.49122816]
[1771338677776,7.09609936,85.15,85.111,0.49122816]
[1771338678356,0.46350617,85.16,85.121,0.49122816]
[1771338678357,7.09609936,85.16,85.121,0.49122816]
[1771338678566,7.09609936,85.14,85.11,0.49122816]
[1771338678762,7.09609936,85.14,85.112,0.49122816]
[1771338678967,7.09609936,85.15,85.112,0.49122816]
[1771338679565,7.09609936,85.13,85.097,0.49122816]
[1771338679758,0.46350617,85.145,85.09,11.75226231]
[1771338680077,7.09609936,85.12,85.091,0.49122816]
[1771338680373,7.09609936,85.14,85.101,0.49122816]
[1771338680677,11.74287794,85.158,85.11,7.09609936]
[1771338680973,7.09609936,85.16,85.121,0.49122816]
[1771338681179,7.09609936,85.15,85.121,0.49122816]
[1771338681362,7.09609936,85.16,85.121,0.49122816]
[1771338681884,7.09609936,85.17,85.121,0.49122816]
[1771338682082,7.09609936,85.16,85.121,0.49122816]
[1771338682585,7.09609936,85.15,85.121,0.49122816]
[1771338682761,11.93990915,85.18,85.141,0.49122816]
[1771338682956,0.2,85.18,85.151,0.49122816]
[1771338683271,29.33990285,85.209,85.15,7.09609936]
[1771338683272,0.46350617,85.235,85.181,0.49122816]
[1771338683460,7.09609936,85.22,85.181,0.49122816]
[1771338683777,7.09609936,85.22,85.035,70.55840512]
[1771338683778,6.13440285,85.266,85.182,0.49122816]
[1771338683979,6.13440285,85.266,85.144,4.61729252]
[1771338683980,7.29609936,85.26,85.221,0.49122816]
[1771338684280,7.09609936,85.23,85.191,0.49122816]
[1771338684663,7.09609936,85.23,85.201,0.49122816]
[1771338684865,0.46350617,85.247,85.203,0.49122816]
[1771338685083,7.09609936,85.23,85.203,0.49122816]
[1771338685280,7.09609936,85.25,85.211,0.49122816]
[1771338685465,0.2,85.26,85.221,0.49122816]
[1771338685657,0.2,85.27,85.24,7.09609936]
[1771338685864,0.2,85.28,85.251,0.49122816]
[1771338686064,7.09609936,85.27,85.239,0.49122816]
[1771338686466,7.09609936,85.25,85.203,0.49122816]
[1771338686659,7.09609936,85.23,85.193,0.49122816]
[1771338686876,7.09609936,85.24,85.201,0.49122816]
[1771338687183,7.09609936,85.23,85.201,0.49122816]
[1771338687397,7.09609936,85.22,85.201,0.49122816]
[1771338687870,7.09609936,85.22,85.175,23.14]
[1771338687871,7.09609936,85.21,85.188,0.49122816]
[1771338688062,0.46350617,85.227,85.177,11.74012263]
[1771338688264,0.46350617,85.227,85.14,46.98137153]
[1771338688265,0.46350617,85.189,85.149,0.49122816]
[1771338688467,7.09609936,85.19,85.151,0.49122816]
[1771338688673,7.09609936,85.18,85.151,0.49122816]
[1771338688967,7.09609936,85.16,85.131,0.49122816]
[1771338689366,7.09609936,85.16,84.918,25.77173093]
[1771338689367,7.09609936,85.14,85.103,0.49122816]
[1771338689564,0.46350617,85.148,85.09,0.49122816]
[1771338689778,5.08079869,85.16,85.101,0.49122816]
[1771338689975,7.10895755,85.14,85.101,0.49122816]
[1771338690181,7.10895755,85.17,85.131,0.49122816]
[1771338690494,0.46350617,85.198,85.141,0.49122816]
[1771338690669,46.9326563,85.229,85.109,5.36086188]
[1771338690670,7.10895755,85.21,85.171,0.49122816]
[1771338690876,7.10895755,85.23,85.191,0.49122816]
[1771338691078,12.19384904,85.249,85.201,0.49122816]
[1771338691079,7.10895755,85.24,85.201,0.49122816]
[1771338691268,7.10895755,85.23,85.201,0.49122816]
[1771338691586,7.10895755,85.24,85.201,0.49122816]
[1771338691785,7.10895755,85.23,85.201,0.49122816]
[1771338691991,12.19384904,85.249,85.179,23.2]
[1771338691992,7.10895755,85.25,85.211,0.49122816]
[1771338692162,11.72896702,85.259,85.221,0.49122816]
[1771338692367,7.10895755,85.24,85.221,0.49122816]
[1771338692696,7.10895755,85.25,85.211,0.49122816]
[1771338692864,11.726884,85.275,85.231,0.49122816]
[1771338693069,7.10895755,85.27,85.231,0.49122816]
[1771338693290,7.30895755,85.28,85.241,0.49122816]
[1771338693589,7.10895755,85.27,85.241,0.49122816]
[1771338693775,7.10895755,85.26,85.228,0.49122816]
[1771338693970,7.10895755,85.27,85.231,0.49122816]
[1771338694181,7.10895755,85.26,85.231,0.49122816]
[1771338694374,7.10895755,85.27,85.231,0.49122816]
[1771338694576,7.10895755,85.27,85.241,0.49122816]
[1771338695292,7.10895755,85.26,85.231,0.49122816]
[1771338695490,0.46350617,85.278,85.229,11.73309554]
[1771338695491,0.2,85.28,85.251,0.49122816]
[1771338695793,11.72346686,85.299,85.261,0.49122816]
[1771338695981,7.10895755,85.29,85.261,0.49122816]
[1771338696327,7.10895755,85.29,85.246,23.28]
[1771338696328,7.10895755,85.28,85.247,0.49122816]
[1771338696466,7.10895755,85.29,85.251,0.49122816]
[1771338697185,7.10895755,85.27,85.235,0.49122816]
[1771338697385,0.46350617,85.271,85.222,0.49122816]
[1771338697575,7.10895755,85.26,85.229,0.49122816]
[1771338698470,7.10895755,85.27,85.231,0.49122816]
[1771338698684,0.46350617,85.283,85.231,0.49122816]
[1771338698884,0.46350617,85.283,85.221,41.06968939]
[1771338698885,7.10895755,85.28,85.241,0.49122816]
[1771338699092,7.10895755,85.27,85.241,0.49122816]
[1771338699281,7.10895755,85.26,85.241,0.49122816]
[1771338699481,7.10895755,85.26,85.18,46.95921851]
[1771338699482,0.46350617,85.249,85.21,7.10895755]
[1771338699692,7.10895755,85.24,85.2,30.42895755]
[1771338699893,7.10895755,85.23,85.2,7.10895755]
[1771338700105,7.10895755,85.23,85.179,23.32]
[1771338700106,7.10895755,85.23,85.19,7.10895755]
[1771338700306,7.10895755,85.22,85.18,7.10895755]
[1771338700606,0.46350617,85.219,85.18,7.10895755]
[1771338700999,7.10895755,85.23,85.19,7.10895755]
[1771338701400,7.10895755,85.25,85.21,7.10895755]
[1771338701710,7.10895755,85.27,85.231,0.49122816]
[1771338702112,7.10895755,85.27,85.241,0.49122816]
[1771338702314,7.10895755,85.28,85.241,0.49122816]
[1771338702497,7.10895755,85.26,85.23,7.10895755]
[1771338702694,7.57246372,85.27,85.23,7.10895755]
[1771338703013,7.10895755,85.28,85.241,0.49122816]
[1771338703194,7.10895755,85.27,85.241,0.49122816]
[1771338703390,7.10895755,85.27,85.24,7.10895755]
[1771338703605,0.46350617,85.278,85.24,7.10895755]
[1771338703912,7.10895755,85.27,85.24,7.10895755]
[1771338704110,7.10895755,85.27,85.231,0.49122816]
[1771338704309,7.10895755,85.27,85.24,7.10895755]
[1771338704514,18.8336615,85.29,85.25,7.10895755]
[1771338704690,0.2,85.3,85.27,7.10895755]
[1771338705014,11.72346686,85.299,85.26,7.10895755]
[1771338705203,0.49448384,85.289,85.25,7.10895755]
[1771338705394,11.72413803,85.295,85.26,7.10895755]
[1771338705713,11.72413803,85.295,85.252,0.47510973]
[1771338705714,0.2,85.3,85.29,7.10895755]
[1771338705918,0.1,85.33,85.291,0.40877184]
[1771338706094,0.1,85.36,85.321,0.30877184]
[1771338706417,0.1,85.38,85.35,7.10895755]
[1771338706714,7.10895755,85.44,85.373,4.61729252]
[1771338706914,0.5,85.429,85.364,4.61729252]
[1771338707121,12.20562689,85.429,85.39,7.10895755]
[1771338707409,0.5,85.409,85.37,7.10895755]
[1771338707808,0.5,85.409,85.33,105.47287002]
[1771338707809,0.5,85.379,85.33,18.82816533]
[1771338708012,0.5,85.369,85.33,22.30602522]
[1771338708394,4.61729252,85.4,85.34,10.58681744]
[1771338708395,10.58681744,85.38,85.34,10.58681744]
[1771338708606,10.58681744,85.36,85.32,10.58681744]
[1771338708831,10.58681744,85.36,85.33,10.58681744]
[1771338709121,17.88,85.417,85.319,41.02245503]
[1771338709122,0.5,85.428,85.35,10.58681744]
[1771338709418,0.5,85.428,85.391,11.71083603]
[1771338709589,10.58681744,85.4,85.37,10.58681744]
[1771338709790,0.5,85.4,85.36,10.58681744]
[1771338710106,10.58681744,85.4,85.37,10.58681744]
[1771338710414,10.58681744,85.42,85.38,10.58681744]
[1771338710587,40.9706533,85.427,85.371,23.3]
[1771338710789,0.5,85.389,85.355,11.71577529]
[1771338711315,11.71261917,85.378,85.34,10.58681744]
[1771338711520,0.5,85.369,85.296,117.23879195]
[1771338711809,0.5,85.369,85.33,10.58681744]
[1771338712017,10.58681744,85.36,85.32,10.58681744]
[1771338712201,0.5,85.359,85.32,10.58681744]
[1771338712399,0.5,85.374,85.34,10.58681744]
[1771338712601,33.894929,85.39,85.312,23.3]
[1771338712602,0.5,85.369,85.33,10.58681744]
[1771338713004,0.5,85.384,85.35,10.58681744]
[1771338713306,0.5,85.382,85.32,10.58681744]
[1771338713610,0.5,85.382,85.296,246.2014631]
[1771338713611,0.5,85.37,85.34,10.58681744]
[1771338713812,10.58681744,85.37,85.321,41.02155389]
[1771338714112,10.58681744,85.36,85.32,10.58681744]
[1771338714414,0.5,85.375,85.34,10.58681744]
[1771338714909,10.58681744,85.37,85.33,10.58681744]
[1771338715119,10.58681744,85.39,85.35,10.58681744]
[1771338715321,0.5,85.392,85.361,11.71495179]
[1771338715624,0.5,85.389,85.36,10.58681744]
[1771338716029,0.5,85.369,85.33,10.58681744]
[1771338716218,0.5,85.369,85.34,10.58681744]
[1771338717029,0.5,85.379,85.34,10.58681744]
[1771338717423,0.5,85.379,85.304,4.61729252]
[1771338717424,0.5,85.369,85.33,10.58681744]
[1771338717629,10.58681744,85.36,85.32,10.58681744]
[1771338718035,0.5,85.359,85.32,10.58681744]
[1771338718223,10.58681744,85.35,85.31,10.58681744]
[1771338718421,0.5,85.339,85.3,10.58681744]
[1771338718622,0.5,85.353,85.32,10.58681744]
[1771338718853,0.5,85.349,85.31,10.58681744]
[1771338719315,0.5,85.362,85.331,11.71907044]
[1771338719512,4.61729252,85.38,85.31,10.58681744]
[1771338719513,0.5,85.349,85.31,10.58681744]
[1771338719707,0.5,85.349,85.285,11.72539133]
[1771338719708,10.58681744,85.33,85.291,23.28]
[1771338719908,0.5,85.339,85.3,10.58681744]
[1771338720508,0.5,85.329,85.29,10.58681744]
[1771338720729,0.5,85.329,85.3,10.58681744]
[1771338720914,0.5,85.344,85.31,10.58681744]
[1771338721121,29.28336174,85.373,85.285,87.94043499]
[1771338721122,4.61729252,85.403,85.33,11.0586989]
[1771338721425,10.58681744,85.39,85.351,0.47188146]
[1771338721620,10.58681744,85.4,85.351,0.47188146]
[1771338721823,17.86,85.439,85.37,10.58681744]
[1771338722024,0.1,85.48,85.39,11.0586989]
[1771338722208,0.1,85.48,85.349,5.36086188]
[1771338722209,10.58681744,85.44,85.377,0.47188146]
[1771338722534,10.58681744,85.44,85.364,4.61729252]
[1771338722535,10.58681744,85.45,85.41,10.58681744]
[1771338722724,10.58681744,85.47,85.43,10.58681744]
[1771338722907,10.58681744,85.46,85.42,10.58681744]
[1771338723111,11.0819033,85.44,85.4,10.58681744]
[1771338723534,0.49508586,85.429,85.39,10.58681744]
[1771338723838,10.58681744,85.43,85.4,10.58681744]
[1771338724023,0.49508586,85.419,85.382,11.71207045]
[1771338724225,10.58681744,85.43,85.39,10.58681744]
[1771338724534,0.49508586,85.449,85.41,10.58681744]
[1771338724725,10.58681744,85.45,85.42,10.58681744]
[1771338724925,0.49508586,85.462,85.43,10.58681744]
[1771338725126,12.19630678,85.462,85.43,10.58681744]
[1771338725330,0.49508586,85.459,85.42,10.58681744]
[1771338725511,0.49508586,85.449,85.42,10.58681744]
[1771338725707,0.49508586,85.449,85.41,22.29496299]
[1771338725909,0.49508586,85.419,85.38,10.58681744]
[1771338726419,17.88,85.453,85.355,11.71568361]
[1771338726420,0.49508586,85.399,85.355,11.71568361]
[1771338726613,0.49508586,85.399,85.36,10.58681744]
[1771338726813,10.58681744,85.42,85.39,10.58681744]
[1771338727012,0.49508586,85.426,85.39,10.58681744]
[1771338727438,0.49508586,85.439,85.4,10.58681744]
[1771338727729,4.61729252,85.45,85.41,10.58681744]
[1771338727730,11.70304538,85.448,85.41,10.58681744]
[1771338727933,0.49508586,85.429,85.39,10.58681744]
[1771338728133,0.49508586,85.429,85.391,11.71083603]
[1771338728313,10.58681744,85.42,85.391,11.71083603]
[1771338728517,0.49508586,85.399,85.339,0.47188146]
[1771338728721,0.49508586,85.389,85.35,10.58681744]
[1771338729033,4.61729252,85.41,85.325,0.47188146]
[1771338729034,10.58681744,85.37,85.325,0.47188146]
[1771338729245,0.49508586,85.359,85.32,10.58681744]
[1771338729447,5.36086188,85.409,85.3,10.58681744]
[1771338729448,11.0819033,85.34,85.3,10.58681744]
[1771338729740,0.49508586,85.319,85.28,10.58681744]
[1771338730035,0.49508586,85.338,85.266,41.04801444]
[1771338730215,0.49508586,85.329,85.29,10.58681744]
[1771338730418,10.58681744,85.3,85.266,11.72800412]
[1771338730740,11.71738766,85.344,85.291,0.47188146]
[1771338731044,11.71738766,85.344,85.266,146.60005159]
[1771338731045,10.58681744,85.32,85.28,10.58681744]
[1771338731220,10.58681744,85.31,85.27,10.58681744]
[1771338731423,4.61729252,85.341,85.3,10.58681744]
[1771338731424,10.58681744,85.34,85.3,10.58681744]
[1771338731626,10.58681744,85.34,85.291,0.47188146]
[1771338731627,10.58681744,85.34,85.31,10.58681744]
[1771338732026,11.0819033,85.35,85.31,10.58681744]
[1771338732227,11.7165989,85.349,85.31,10.58681744]
[1771338732413,10.58681744,85.35,85.31,10.58681744]
[1771338732622,10.58681744,85.36,85.32,10.58681744]
[1771338732825,0.49508586,85.363,85.33,10.58681744]
[1771338733115,4.61729252,85.38,85.34,10.58681744]
[1771338733116,10.58681744,85.38,85.34,10.58681744]
[1771338733421,0.49508586,85.397,85.36,10.58681744]
[1771338733745,0.49508586,85.369,85.33,10.58681744]
[1771338733920,10.58681744,85.36,85.33,10.58681744]
[1771338734123,0.49508586,85.369,85.33,10.58681744]
[1771338734326,10.58681744,85.38,85.34,10.58681744]
[1771338734616,0.47210777,85.379,85.34,10.58681744]
[1771338735039,10.58681744,85.37,85.33,11.03710603]
[1771338735216,0.47210777,85.379,85.33,11.03710603]
[1771338735417,10.58681744,85.37,85.33,10.58681744]
[1771338735642,11.71385397,85.369,85.331,11.71907044]
[1771338735839,0.47210777,85.368,85.33,10.58681744]
[1771338736047,0.47210777,85.368,85.257,99.69667177]
[1771338736048,10.58681744,85.36,85.32,10.58681744]
[1771338736543,10.58681744,85.35,85.31,10.58681744]
[1771338736834,10.58681744,85.35,85.308,23.34]
[1771338736835,10.58681744,85.37,85.34,10.58681744]
[1771338737042,0.47210777,85.349,85.281,41.04079453]
[1771338737225,0.47210777,85.319,85.281,41.04079453]
[1771338737426,10.58681744,85.31,85.281,11.72594129]
[1771338737619,10.58681744,85.31,85.271,11.72731643]
[1771338737816,0.47210777,85.319,85.28,10.58681744]
[1771338738018,10.58681744,85.31,85.271,11.72731643]
[1771338738225,11.05892521,85.3,85.265,11.72803817]
[1771338738742,10.58681744,85.3,85.27,10.58681744]
[1771338738949,10.58681744,85.32,85.28,10.58681744]
[1771338739250,10.58681744,85.32,85.29,10.58681744]
[1771338739426,10.58681744,85.33,85.291,23.34]
[1771338739631,10.58681744,85.32,85.292,11.72442902]
[1771338739829,0.47210777,85.329,85.292,11.72442902]
[1771338740029,0.47210777,85.329,85.292,41.03550157]
[1771338740231,10.58681744,85.34,85.301,0.45028859]
[1771338740432,11.71797185,85.339,85.302,23.34]
[1771338740651,0.47210777,85.379,85.32,10.58681744]
[1771338740821,0.47210777,85.359,85.31,10.58681744]
[1771338741027,0.47210777,85.359,85.32,10.58681744]
[1771338741450,10.58681744,85.35,85.31,10.58681744]
[1771338741643,10.58681744,85.35,85.303,0.45028859]
[1771338741644,22.29784336,85.39,85.343,0.45028859]
[1771338741842,22.29784336,85.39,85.35,10.58681744]
[1771338742140,10.58681744,85.39,85.351,0.45028859]
[1771338742341,11.71111033,85.389,85.35,10.58681744]
[1771338742844,10.58681744,85.37,85.33,10.58681744]
[1771338743138,10.58681744,85.37,85.32,0.45028859]
[1771338743139,10.58681744,85.35,85.32,10.58681744]
[1771338743340,87.83332747,85.389,85.33,10.58681744]
[1771338743341,10.58681744,85.37,85.33,10.58681744]
[1771338743556,10.58681744,85.37,85.33,11.03710603]
[1771338743728,10.58681744,85.35,85.32,10.58681744]
[1771338743924,10.58681744,85.35,85.281,46.9034779]
[1771338743925,0.47210777,85.329,85.26,0.45028859]
[1771338744232,10.58681744,85.3,85.27,10.58681744]
[1771338744436,10.58681744,85.29,85.25,10.58681744]
[1771338744738,5.36086188,85.333,85.25,10.58681744]
[1771338744739,10.58681744,85.28,85.25,10.58681744]
[1771338744923,10.58681744,85.3,85.26,10.58681744]
[1771338745119,10.58681744,85.28,85.25,10.58681744]
[1771338745349,0.47210777,85.289,85.25,10.58681744]
[1771338745640,0.47210777,85.289,85.251,11.73006768]
[1771338745850,0.47210777,85.288,85.25,10.58681744]
[1771338746052,0.47210777,85.279,85.241,11.73144378]
[1771338746219,0.47210777,85.279,85.24,10.58681744]
[1771338746220,10.58681744,85.27,85.231,11.73282021]
[1771338746846,10.58681744,85.27,85.23,10.58681744]
[1771338746847,0.47210777,85.269,85.23,10.58681744]
[1771338747051,0.47210777,85.259,85.221,11.73419697]
[1771338747249,10.58681744,85.25,85.22,0.2]
[1771338747549,41.03705748,85.289,85.221,0.45028859]
[1771338747550,10.58681744,85.26,85.221,0.45028859]
[1771338747750,10.58681744,85.26,85.222,11.73405928]
[1771338748051,0.47210777,85.249,85.22,0.2]
[1771338748647,11.72896702,85.259,85.221,11.73419697]
[1771338748947,0.47210777,85.258,85.221,11.73419697]
[1771338749146,4.61729252,85.28,85.221,11.73419697]
[1771338749147,0.47210777,85.293,85.24,10.58681744]
[1771338749344,0.47210777,85.259,85.221,41.06968939]
[1771338749658,10.58681744,85.25,85.22,22.5210756]
[1771338749943,0.47210777,85.286,85.241,0.45028859]
[1771338750120,0.47210777,85.286,85.24,10.58681744]
[1771338750121,10.58681744,85.27,85.24,10.58681744]
[1771338750325,10.58681744,85.28,85.241,0.45028859]
[1771338750566,10.58681744,85.27,85.228,0.45028859]
[1771338750848,10.58681744,85.27,85.22,41.27009481]
[1771338750849,0.47210777,85.249,85.22,0.2]
[1771338751052,10.58681744,85.27,85.231,0.45028859]
[1771338751224,10.58681744,85.27,85.24,10.58681744]
[1771338751424,41.03309611,85.297,85.221,41.06968939]
[1771338751425,10.58681744,85.26,85.221,41.06968939]
[1771338751623,10.58681744,85.26,85.222,23.32]
[1771338751827,0.47210777,85.292,85.24,10.58681744]
[1771338752044,7.08671108,85.27,85.23,7.08671108]
[1771338752257,7.08671108,85.26,85.23,7.08671108]
[1771338752423,7.08671108,85.26,85.224,0.45028859]
[1771338752628,7.08671108,85.26,85.223,41.06872557]
[1771338752831,7.08671108,85.26,85.22,7.28671108]
[1771338752832,0.47210777,85.259,85.22,0.2]
[1771338753032,0.47210777,85.249,85.22,0.2]
[1771338753463,7.08671108,85.27,85.23,7.53699967]
[1771338753650,7.08671108,85.27,85.231,0.45028859]
[1771338753887,7.08671108,85.29,85.25,7.08671108]
[1771338754034,7.08671108,85.3,85.251,23.34]
[1771338754233,7.08671108,85.31,85.271,0.45028859]
[1771338754434,7.08671108,85.31,85.273,0.45028859]
[1771338754653,0.47210777,85.319,85.28,7.08671108]
[1771338754850,7.08671108,85.32,85.28,7.08671108]
[1771338754851,7.08671108,85.32,85.281,0.45028859]
[1771338755234,7.55881885,85.32,85.281,0.45028859]
[1771338755439,7.08671108,85.31,85.27,7.08671108]
[1771338755654,0.47210777,85.319,85.281,0.45028859]
[1771338755864,41.01578521,85.333,85.271,23.34]
[1771338755865,7.08671108,85.33,85.291,41.03598269]
[1771338756154,0.47210777,85.329,85.291,11.72456648]
[1771338756745,12.19007962,85.339,85.292,0.45028859]
[1771338756958,7.08671108,85.32,85.286,11.72522943]
[1771338757843,7.08671108,85.33,85.291,11.72456648]
[1771338758056,0.47210777,85.335,85.3,7.08671108]
[1771338758256,0.47210777,85.348,85.31,7.08671108]
[1771338758457,7.08671108,85.35,85.311,0.45028859]
[1771338758956,7.08671108,85.34,85.302,23.34]
[1771338759256,0.47210777,85.349,85.31,7.08671108]
[1771338759447,7.08671108,85.34,85.303,0.45028859]
[1771338759651,7.08671108,85.34,85.304,23.34]
[1771338759850,11.71673618,85.348,85.305,41.47953657]
[1771338760052,11.71516529,85.36,85.31,7.08671108]
[1771338760265,18.80187637,85.36,85.321,0.45028859]
[1771338760464,7.08671108,85.35,85.321,0.45028859]
[1771338760653,18.80187637,85.36,85.321,0.45028859]
[1771338760851,7.08671108,85.33,85.305,11.72264228]
[1771338761170,18.80187637,85.36,85.32,7.08671108]
[1771338761363,7.55881885,85.34,85.305,11.72264228]
[1771338761760,7.08671108,85.34,85.306,0.45028859]
[1771338761960,4.61729252,85.371,85.282,11.7258038]
[1771338761961,7.55881885,85.32,85.282,11.7258038]
[1771338762161,7.55881885,85.32,85.282,41.0403133]
[1771338762363,0.47210777,85.309,85.271,11.72731643]
[1771338762671,0.47210777,85.279,85.23,0.45028859]
[1771338762978,0.47210777,85.279,85.24,7.08671108]
[1771338763651,7.08671108,85.29,85.251,0.45028859]
[1771338763855,7.08671108,85.28,85.252,11.72993008]
[1771338764278,7.08671108,85.27,85.233,0.4785392]
[1771338764484,0.46814732,85.239,85.195,0.4785392]
[1771338764653,7.08671108,85.23,85.181,0.4785392]
[1771338764967,7.08671108,85.24,85.201,0.4785392]
[1771338765275,7.08671108,85.22,85.188,0.4785392]
[1771338765484,7.08671108,85.21,85.189,23.32]
[1771338765783,7.08671108,85.22,85.18,7.08671108]
[1771338766071,10.62478885,85.2,85.173,23.32]
[1771338766257,10.62478885,85.19,85.161,23.32]
[1771338766457,0.46814732,85.197,85.159,11.74274005]
[1771338766656,41.06920748,85.222,85.139,23.34]
[1771338766657,10.62478885,85.17,85.139,23.34]
[1771338766856,88.0054446,85.222,85.113,0.4785392]
[1771338766857,0.46814732,85.159,85.113,0.4785392]
[1771338767057,0.46814732,85.196,85.104,0.4785392]
[1771338767354,28.38478885,85.2,85.091,6.13860754]
[1771338767355,10.62478885,85.12,85.091,6.13860754]
[1771338767562,0.46814732,85.139,85.091,0.4785392]
[1771338767756,10.62478885,85.1,85.063,11.7559874]
[1771338767973,10.62478885,85.1,85.019,47.04795732]
[1771338767974,17.76,85.154,85.081,0.4785392]
[1771338768172,10.62478885,85.14,85.101,0.4785392]
[1771338768762,10.62478885,85.13,85.09,10.62478885]
[1771338768961,10.62478885,85.15,85.101,0.4785392]
[1771338769163,10.62478885,85.15,85.111,0.4785392]
[1771338769469,287.56206057,85.199,85.14,10.62478885]
[1771338769470,10.62478885,85.18,85.14,10.62478885]
[1771338769671,10.62478885,85.18,85.131,0.4785392]
[1771338769672,10.62478885,85.16,85.131,0.4785392]
[1771338769871,10.62478885,85.18,85.14,10.62478885]
[1771338770055,10.62478885,85.18,85.127,20.46]
[1771338770056,10.62478885,85.17,85.133,0.4785392]
[1771338770260,10.62478885,85.16,85.124,12.22610738]
[1771338770472,10.62478885,85.17,85.131,0.4785392]
[1771338770674,0.46814732,85.19,85.131,0.4785392]
[1771338770675,11.73878445,85.188,85.15,10.62478885]
[1771338770960,10.62478885,85.18,85.141,0.4785392]
[1771338771688,11.73860474,85.189,85.15,11.10332805]
[1771338771855,10.62478885,85.18,85.15,10.62478885]
[1771338772058,10.62478885,85.18,85.145,11.74459457]
[1771338772257,11.09293617,85.19,85.15,10.62478885]
[1771338772479,11.09293617,85.19,85.146,0.49592364]
[1771338772480,10.62478885,85.18,85.145,11.74459457]
[1771338772680,11.73847244,85.19,85.091,47.00838859]
[1771338772681,10.62478885,85.17,85.13,10.62478885]
[1771338772887,10.62478885,85.16,85.13,10.62478885]
[1771338773178,10.62478885,85.16,85.126,23.3]
[1771338773379,10.62478885,85.16,85.127,11.74715425]
[1771338773583,0.48719497,85.139,85.09,10.62478885]
[1771338773773,10.62478885,85.11,85.08,0.49592364]
[1771338774087,11.74549853,85.139,85.091,0.49592364]
[1771338774274,11.74549853,85.139,85.1,10.62478885]
[1771338774468,10.62478885,85.13,85.091,0.49592364]
[1771338774788,11.74549853,85.139,85.07,10.62478885]
[1771338774789,10.62478885,85.11,85.07,10.62478885]
[1771338774969,10.62478885,85.1,85.065,11.75571621]
[1771338775180,10.62478885,85.11,85.07,10.62478885]
[1771338775377,10.62478885,85.11,85.071,0.49592364]
[1771338775577,41.10924487,85.139,85.068,0.49592364]
[1771338775578,10.62478885,85.1,85.068,0.49592364]
[1771338775779,10.62478885,85.12,85.081,0.49592364]
[1771338775976,10.62478885,85.12,85.09,10.62478885]
[1771338776186,10.62478885,85.12,85.083,0.49592364]
[1771338776574,11.74825832,85.119,85.083,0.49592364]
[1771338776777,46.97159958,85.158,85.082,11.75336733]
[1771338776778,0.48719497,85.149,85.101,0.49592364]
[1771338776980,0.48719497,85.159,85.12,10.62478885]
[1771338777279,11.73998285,85.179,85.082,287.95749976]
[1771338777280,10.62478885,85.13,85.09,10.62478885]
[1771338777496,10.62478885,85.13,85.091,0.49592364]
[1771338777801,10.62478885,85.12,85.082,11.75336733]
[1771338778101,0.48719497,85.129,85.09,10.62478885]
[1771338778297,4.61729252,85.16,85.091,11.75212419]
[1771338778298,10.62478885,85.12,85.091,11.75212419]
[1771338778505,10.62478885,85.13,85.091,41.13243468]
[1771338778675,10.62478885,85.12,85.091,11.75212419]
[1771338778906,10.62478885,85.12,85.087,0.49592364]
[1771338779077,10.62478885,85.13,85.091,0.49592364]
[1771338779386,10.62478885,85.12,85.086,12.24870637]
[1771338780397,12.23480105,85.124,85.074,0.49592364]
[1771338780583,10.62478885,85.13,85.091,0.49592364]
[1771338780775,10.62478885,85.15,85.111,0.49592364]
[1771338780976,22.3674876,85.16,85.121,0.49592364]
[1771338781193,11.74274005,85.159,85.121,0.49592364]
[1771338781396,0.48719497,85.149,85.11,10.62478885]
[1771338781584,10.62478885,85.16,85.12,10.62478885]
[1771338781791,10.62478885,85.16,85.114,0.49592364]
[1771338781994,10.62478885,85.15,85.076,4.61729252]
[1771338782178,228.86518077,85.203,85.102,0.49592364]
[1771338782179,10.62478885,85.14,85.102,0.49592364]
[1771338782375,11.74549853,85.139,85.103,11.75046708]
[1771338782581,10.62478885,85.14,85.104,0.49592364]
[1771338782790,10.62478885,85.15,85.111,0.49592364]
[1771338783090,10.62478885,85.16,85.121,0.49592364]
[1771338783597,10.62478885,85.18,85.141,0.49592364]
[1771338783795,0.48719497,85.179,85.14,10.62478885]